bitfinex/quotes_ETHUSD_20241207
["timestamp","ask_amount","ask_price","bid_price","bid_amount"]
[1733535721036,4.9142,3987.8,3987.7,0.35107]
[1733535721235,4.9142,3988.6,3988.3,0.35102]
[1733535721442,0.71320176,3988.5,3988.3,0.35102]
[1733535722557,4.9142,3988.6,3988.3,0.35101]
[1733535723416,4.9142,3988.6,3988.4,0.35101]
[1733535724138,4.9142,3988.6,3988.4,3.35101]
[1733535724342,4.9142,3988.6,3988.4,0.35101]
[1733535724663,4.9142,3988.6,3988.4,3.35101]
[1733535724833,4.9142,3988.9,3988.4,3.35101]
[1733535725240,4.9142,3988.9,3988.4,0.35101]
[1733535725446,4.9142,3988.9,3988.4,3.35101]
[1733535725867,4.9142,3988.9,3988.4,0.35101]
[1733535726163,4.9142,3988.9,3988.4,3.35101]
[1733535727318,0.57818,3988.8,3988.4,0.35101]
[1733535727557,0.57818,3988.8,3988.4,3.35101]
[1733535727858,0.57818,3988.8,3988.4,0.35101]
[1733535728033,0.60952192,3988.8,3988.4,3.35101]
[1733535728228,0.57818,3988.8,3988.4,0.35101]
[1733535728965,0.57818,3988.8,3988.4,3.35101]
[1733535729259,0.57818,3988.8,3988.4,0.35101]
[1733535729567,0.57818,3988.8,3988.4,3.0]
[1733535729762,0.635998,3988.7,3987.7,0.9096]
[1733535729947,0.635998,3988.7,3988.2,0.35103]
[1733535730151,0.03134415,3988.6,3988.2,0.35103]
[1733535730761,4.94554415,3988.6,3988.2,0.35103]
[1733535730958,0.55815421,3988.5,3988.2,0.35103]
[1733535731545,0.03134403,3988.4,3988.2,0.35103]
[1733535732468,0.9357,3988.3,3987.4,0.8686]
[1733535732642,0.03134694,3988.2,3988.1,3.0]
[1733535732978,0.96704507,3988.3,3987.8,0.35107]
[1733535733270,0.18386671,3988.2,3987.8,0.35107]
[1733535733509,0.18386669,3988.2,3987.8,0.35107]
[1733535733667,0.15251993,3988.2,3987.9,0.35106]
[1733535733966,5.8499,3988.3,3987.9,0.35106]
[1733535738343,4.9142,3988.3,3988.1,0.35104]
[1733535738548,4.9142,3988.3,3988.0,0.8978]
[1733535739155,4.9142,3988.3,3988.2,0.35103]
[1733535739365,4.9142,3988.3,3988.2,3.35103]
[1733535739785,4.9142,3989.0,3988.5,0.351]
[1733535739985,4.9142,3988.9,3988.5,0.351]
[1733535740285,4.9142,3988.9,3988.2,0.35103]
[1733535740286,4.9142,3988.9,3988.6,0.35099]
[1733535741086,0.8694,3988.7,3987.1,0.35113]
[1733535741281,0.77077242,3988.6,3987.2,0.35112]
[1733535741590,0.77077242,3988.6,3987.8,0.35106]
[1733535742153,0.77077242,3988.6,3987.9,0.35105]
[1733535742349,0.77077242,3988.6,3987.4,0.8978]
[1733535742681,0.77077242,3988.6,3988.0,0.35105]
[1733535742978,0.65543724,3988.5,3988.0,0.35105]
[1733535744103,0.65543724,3988.5,3987.4,0.8978]
[1733535744104,0.65543724,3988.5,3988.1,0.35103]
[1733535745357,0.65543724,3988.5,3987.4,0.8978]
[1733535745713,0.65543724,3988.5,3987.8,0.35106]
[1733535746007,4.9142,3988.4,3987.8,0.35106]
[1733535746169,0.55696372,3988.3,3987.8,0.35106]
[1733535746572,0.8694,3988.0,3986.1,1.87401]
[1733535746781,0.8694,3987.8,3986.6,0.35117]
[1733535746986,0.8694,3987.5,3986.3,0.35119]
[1733535747309,4.9142,3987.6,3986.3,0.35119]
[1733535747310,0.8694,3987.1,3986.3,0.35119]
[1733535747604,0.90075737,3987.1,3986.3,0.35119]
[1733535748258,0.90075737,3987.1,3986.5,3.0]
[1733535748462,0.8694,3987.1,3986.3,0.35119]
[1733535748692,0.8694,3987.1,3986.4,0.35119]
[1733535748896,1.50590954,3987.1,3986.4,0.35119]
[1733535750336,1.50590954,3987.1,3986.1,0.625]
[1733535750502,1.50590954,3987.1,3986.6,0.35117]
[1733535751818,4.9142,3987.0,3986.6,0.35117]
[1733535755061,4.9142,3986.9,3986.6,0.35117]
[1733535755217,5.55621095,3986.9,3986.6,0.35117]
[1733535756635,5.55621095,3986.9,3986.1,0.625]
[1733535756636,0.64201095,3986.9,3986.1,0.625]
[1733535756963,0.64201095,3986.9,3986.4,0.35119]
[1733535757840,0.64201095,3986.9,3986.5,0.35118]
[1733535758239,4.9142,3987.0,3986.9,0.35115]
[1733535759260,4.9142,3988.1,3987.7,0.35107]
[1733535759467,4.9142,3988.1,3987.9,0.35105]
[1733535759625,4.9142,3988.2,3987.9,0.35105]
[1733535760138,5.49198,3988.2,3987.9,0.35105]
[1733535761162,5.49198,3988.2,3987.3,0.35111]
[1733535761362,0.03134682,3988.1,3987.4,0.3511]
[1733535761660,4.9142,3988.1,3987.4,0.3511]
[1733535763462,4.9142,3988.1,3987.5,3.0]
[1733535763674,0.635558,3988.0,3987.5,3.0]
[1733535763873,0.635558,3988.0,3987.4,0.3511]
[1733535764276,0.635558,3988.0,3987.5,3.0]
[1733535764842,4.9142,3988.1,3987.2,0.35112]
[1733535765255,4.9142,3988.1,3987.7,0.35107]
[1733535765453,4.9142,3988.1,3987.1,0.9014]
[1733535765454,4.9142,3988.1,3987.5,3.0]
[1733535765676,4.9142,3988.1,3987.3,0.35111]
[1733535765877,4.9142,3988.1,3987.5,3.0]
[1733535766106,4.9142,3988.1,3987.3,0.35111]
[1733535766383,5.7778,3988.6,3987.1,0.9014]
[1733535766574,0.8636,3988.6,3988.3,0.35102]
[1733535766771,0.57778,3988.5,3988.3,0.35102]
[1733535767411,0.60912383,3988.5,3987.4,0.9014]
[1733535767593,0.60912383,3988.5,3988.0,0.35105]
[1733535767889,0.60912383,3988.5,3988.1,0.35104]
[1733535768248,0.03134383,3988.5,3988.4,0.35101]
[1733535768469,4.9142,3988.6,3988.4,0.35101]
[1733535769276,4.9142,3988.6,3988.2,0.35103]
[1733535769684,4.9142,3988.6,3988.3,0.35102]
[1733535770669,4.9142,3988.6,3987.9,0.35105]
[1733535770670,4.9142,3988.7,3987.9,0.35105]
[1733535770984,0.03134273,3988.6,3988.4,0.35101]
[1733535771801,4.9142,3988.7,3988.5,0.351]
[1733535772725,4.9142,3989.0,3988.6,0.351]
[1733535773621,4.9142,3989.0,3988.6,0.35099]
[1733535774201,4.9142,3989.0,3988.4,0.8802]
[1733535774398,4.9142,3989.0,3988.7,0.35099]
[1733535774959,4.9142,3989.0,3988.5,0.351]
[1733535775886,4.9142,3988.9,3988.4,0.8802]
[1733535776091,4.9142,3988.9,3988.6,0.35099]
[1733535777009,0.8649,3988.7,3987.7,0.35107]
[1733535777328,4.9142,3988.6,3987.0,0.12649966]
[1733535777497,4.9142,3988.6,3987.1,0.8802]
[1733535777699,4.9142,3988.6,3988.0,0.35104]
[1733535778025,4.9142,3988.6,3988.2,0.35103]
[1733535778229,5.49211,3988.6,3988.2,0.35103]
[1733535778590,0.03134353,3988.5,3988.2,0.35103]
[1733535779135,5.49211,3988.6,3988.2,0.35103]
[1733535779497,0.03134348,3988.5,3988.2,0.35103]
[1733535780335,0.03134357,3988.5,3988.2,0.35103]
[1733535780534,0.03134357,3988.5,3988.0,3.0]
[1733535780712,0.03134366,3988.5,3987.8,0.35107]
[1733535780901,0.03134366,3988.5,3988.2,0.35102]
[1733535781102,0.03134366,3988.5,3987.3,0.70222]
[1733535781103,4.9142,3988.6,3988.3,0.35102]
[1733535781307,5.52345344,3988.6,3988.3,0.35102]
[1733535781512,5.49211,3988.6,3987.7,0.35107]
[1733535781711,0.03134366,3988.5,3988.2,0.35103]
[1733535782809,5.49211,3988.6,3988.2,0.35103]
[1733535783204,0.03134358,3988.5,3988.2,0.35103]
[1733535783761,0.03134357,3988.5,3988.2,0.35103]
[1733535783903,5.49211,3988.6,3988.2,0.35103]
[1733535784102,0.635701,3988.5,3988.4,0.35101]
[1733535784310,4.9142,3988.9,3988.5,0.351]
[1733535785435,4.9142,3988.9,3987.8,0.8802]
[1733535785639,4.9142,3988.9,3988.5,0.351]
[1733535785844,5.49211,3988.9,3988.3,3.0]
[1733535786045,4.9142,3988.9,3988.8,0.35098]
[1733535787045,4.9142,3988.9,3988.5,0.351]
[1733535787949,4.9142,3989.3,3988.5,0.351]
[1733535790964,4.9142,3989.2,3988.5,0.351]
[1733535791146,0.58667353,3989.1,3988.2,0.8802]
[1733535791355,4.9142,3989.2,3988.2,0.8802]
[1733535791528,4.9142,3989.2,3988.6,0.35099]
[1733535792517,4.9142,3989.2,3988.2,1.23123]
[1733535792518,4.9142,3989.2,3988.7,0.35099]
[1733535793878,4.9142,3989.1,3988.7,0.35099]
[1733535794080,4.9142,3989.1,3988.8,0.35098]
[1733535794270,0.49142,3989.0,3988.8,0.35098]
[1733535794863,4.9142,3989.1,3988.3,3.0]
[1733535795065,4.9142,3989.1,3988.8,0.35097]
[1733535796956,4.9142,3989.0,3988.8,0.35097]
[1733535799998,4.9142,3988.9,3988.8,0.29980868]
[1733535802886,4.9142,3989.4,3988.8,0.29980868]
[1733535803070,0.62497112,3989.3,3988.9,0.35097]
[1733535805118,0.62497112,3989.3,3988.5,0.351]
[1733535805302,0.62497112,3989.3,3988.9,0.35096]
[1733535806099,4.9142,3989.2,3988.9,0.35096]
[1733535808933,4.9142,3989.1,3989.0,0.35096]
[1733535811324,1.03677889,3989.4,3989.3,0.35093]
[1733535811533,4.9142,3989.6,3989.5,0.35092]
[1733535811706,1.78662372,3989.9,3989.5,1.23662]
[1733535811900,0.74984483,3989.9,3989.6,1.08470407]
[1733535812100,0.74984483,3989.9,3989.8,0.35089]
[1733535812334,4.9142,3990.3,3989.8,1.23659]
[1733535812540,4.9142,3990.3,3990.2,0.35085]
[1733535813045,4.9142,3990.3,3990.2,1.23655]
[1733535813338,1.03677889,3990.9,3990.8,0.3508]
[1733535813544,1.03677889,3990.9,3990.4,0.35084]
[1733535813545,0.85702621,3990.9,3990.4,0.35084]
[1733535813760,0.9247,3990.7,3990.0,3.0]
[1733535813906,1.03677889,3990.5,3989.4,0.8857]
[1733535814105,3.17769224,3990.4,3989.4,0.8857]
[1733535814312,4.14206493,3990.3,3989.4,0.8857]
[1733535814514,0.96437269,3990.3,3989.4,0.8857]
[1733535814715,0.85621247,3990.2,3989.4,0.8857]
[1733535815001,0.96437269,3990.3,3989.7,0.3509]
[1733535815245,0.85609791,3990.2,3989.4,0.8857]
[1733535815425,0.96437269,3990.3,3989.8,0.35089]
[1733535815639,1.05616461,3990.2,3989.8,0.35089]
[1733535815811,0.20011516,3990.2,3989.8,0.35089]
[1733535817946,5.11431516,3990.2,3989.8,0.35089]
[1733535819404,5.11431516,3990.2,3989.6,0.35091]
[1733535821045,4.9142,3990.1,3989.6,0.35091]
[1733535822743,0.9247,3990.0,3989.6,0.35091]
[1733535824091,4.9142,3990.1,3989.6,0.35091]
[1733535825088,0.55,3989.9,3988.1,0.8857]
[1733535825293,0.9247,3989.6,3988.1,0.8857]
[1733535825462,4.9142,3989.4,3988.3,0.35102]
[1733535825657,4.9142,3989.2,3988.3,0.35102]
[1733535826073,4.9142,3989.2,3988.1,0.8857]
[1733535826384,4.9142,3989.2,3988.3,0.8857]
[1733535826558,4.9142,3989.2,3988.5,0.8857]
[1733535826765,4.9142,3989.2,3988.6,0.351]
[1733535826946,4.9142,3989.2,3988.5,1.2367]
[1733535826947,4.9142,3989.2,3989.0,0.35096]
[1733535827143,4.9142,3989.2,3988.7,0.15877]
[1733535827391,4.9142,3989.2,3989.0,0.35096]
[1733535828255,4.9142,3989.2,3988.7,0.35098]
[1733535828456,0.03133569,3989.1,3988.5,0.8857]
[1733535828983,4.9142,3989.2,3988.5,0.8857]
[1733535829187,0.03133889,3989.1,3988.5,0.8857]
[1733535829389,4.9142,3989.2,3988.5,0.8857]
[1733535829572,0.03133889,3989.1,3988.5,0.8857]
[1733535829900,4.9142,3989.4,3988.5,1.2367]
[1733535830096,1.72939613,3989.3,3988.5,1.2367]
[1733535830297,0.87409025,3989.3,3988.5,1.2367]
[1733535830598,0.84275136,3989.3,3988.5,1.2367]
[1733535830978,0.84275136,3989.3,3988.6,0.35099]
[1733535831187,0.84275136,3989.3,3988.5,0.8857]
[1733535831364,4.9142,3989.4,3988.8,0.35098]
[1733535831573,0.8554153,3989.3,3988.8,3.35098]
[1733535831899,4.9142,3989.4,3988.8,0.35098]
[1733535832103,4.9142,3989.4,3988.8,3.35098]
[1733535832104,4.94553698,3989.4,3988.8,3.35098]
[1733535832305,4.94553698,3989.4,3988.5,1.2367]
[1733535832504,2.82946628,3989.3,3988.5,1.2367]
[1733535832809,0.8868358,3989.2,3988.5,1.2367]
[1733535833108,4.94553865,3989.2,3988.5,1.2367]
[1733535833676,4.9142,3989.2,3988.5,1.2367]
[1733535834108,4.9142,3989.2,3988.6,0.35099]
[1733535834279,4.9142,3989.2,3988.5,0.8857]
[1733535834487,0.8662,3988.9,3987.0,0.9294]
[1733535834709,0.8662,3988.7,3987.6,0.35107]
[1733535835008,0.88642602,3988.6,3987.6,0.35107]
[1733535835243,0.85508091,3988.5,3987.0,2.01474399]
[1733535835364,0.03134768,3988.4,3987.0,1.05880028]
[1733535835564,4.9142,3988.2,3987.2,0.35111]
[1733535835804,0.03134768,3988.1,3987.2,0.35111]
[1733535836181,4.94554768,3988.1,3987.2,0.35111]
[1733535836380,4.94554768,3988.0,3987.0,0.9294]
[1733535836695,0.8662,3987.9,3986.9,0.35114]
[1733535836898,0.61252573,3987.8,3986.9,0.35114]
[1733535838371,0.8662,3987.7,3986.7,0.35116]
[1733535838569,0.8662,3987.4,3986.1,1.28061]
[1733535838794,0.8662,3987.2,3986.1,0.35121]
[1733535839039,5.70228829,3987.1,3986.1,0.35121]
[1733535839237,5.6709306,3987.1,3986.1,0.35121]
[1733535839445,4.9142,3987.0,3986.1,0.35121]
[1733535839819,4.9142,3986.9,3986.1,0.35121]
[1733535840209,0.03135757,3986.8,3986.1,0.35121]
[1733535840414,4.9142,3986.9,3986.1,0.35121]
[1733535841352,0.03135756,3986.8,3986.1,0.35121]
[1733535841524,5.56791306,3986.9,3986.1,0.35121]
[1733535841857,0.03135755,3986.8,3986.1,0.35121]
[1733535842351,0.03135756,3986.8,3986.1,0.35121]
[1733535842513,5.56791306,3986.9,3986.1,0.35121]
[1733535842943,0.03135756,3986.8,3986.1,0.35121]
[1733535843150,5.56791306,3986.9,3986.3,0.3512]
[1733535843511,5.56791306,3986.9,3986.4,0.35119]
[1733535844948,4.9142,3986.8,3986.4,0.35119]
[1733535845750,4.9142,3986.8,3985.8,1.05944215]
[1733535845955,4.9142,3986.8,3986.6,0.35117]
[1733535847081,4.9142,3986.8,3986.7,0.35116]
[1733535847242,4.9142,3986.8,3986.5,0.9294]
[1733535847984,0.03135332,3987.4,3986.5,0.9294]
[1733535847985,4.94555332,3987.4,3986.5,0.9294]
[1733535848657,4.9142,3987.4,3986.4,0.35118]
[1733535848860,0.57804,3987.3,3986.4,0.35118]
[1733535849052,0.57804,3987.3,3986.2,0.9294]
[1733535849391,0.57804,3987.3,3986.6,0.35117]
[1733535850049,0.57804,3987.3,3986.2,0.9294]
[1733535850245,4.9142,3987.4,3986.2,1.05714057]
[1733535850549,4.9142,3987.4,3986.8,0.35115]
[1733535850949,4.9142,3987.3,3986.8,0.35115]
[1733535853763,4.9142,3987.3,3986.6,0.35117]
[1733535853962,4.9142,3987.2,3986.6,0.35117]
[1733535856517,4.9142,3987.2,3986.7,0.35116]
[1733535857015,4.9142,3987.4,3986.7,0.35116]
[1733535857309,4.9142,3987.4,3986.8,0.35115]
[1733535857509,5.49224,3987.4,3986.8,0.35115]
[1733535858934,4.9142,3987.3,3986.9,0.35114]
[1733535859442,4.9142,3987.3,3987.0,0.35113]
[1733535860409,4.9142,3987.3,3986.5,0.8491]
[1733535860594,4.9142,3987.3,3986.7,0.35116]
[1733535861133,5.49537518,3987.3,3986.7,0.35116]
[1733535861437,5.49537518,3987.3,3986.8,0.35115]
[1733535861609,5.49537518,3987.3,3986.9,0.35114]
[1733535862424,4.9142,3987.3,3986.9,0.35114]
[1733535862628,4.9142,3987.3,3986.5,0.97630817]
[1733535862835,4.9142,3987.3,3986.9,0.35114]
[1733535863150,0.8662,3987.5,3986.9,0.35114]
[1733535865902,0.8662,3987.5,3987.0,0.35114]
[1733535866918,0.8662,3987.5,3986.6,0.35117]
[1733535866919,0.894,3987.9,3987.2,0.35112]
[1733535867202,0.58082,3987.8,3987.2,0.35112]
[1733535868141,0.58082,3987.8,3987.2,0.35111]
[1733535868806,5.8082,3988.2,3987.7,0.35107]
[1733535869062,5.8082,3988.2,3987.3,0.8491]
[1733535869063,5.8082,3988.2,3987.3,1.20021]
[1733535869344,0.03134664,3988.1,3987.3,1.20021]
[1733535869510,0.03134664,3988.1,3987.3,0.8491]
[1733535869831,0.03134664,3988.1,3987.6,0.35108]
[1733535870019,0.63683601,3988.1,3987.7,0.35107]
[1733535870220,0.60548937,3988.1,3987.7,0.35107]
[1733535871729,0.60548937,3988.1,3987.8,0.35106]
[1733535873527,0.60548937,3988.1,3987.4,0.3511]
[1733535873853,5.8082,3988.2,3987.9,0.35106]
[1733535875017,4.9142,3988.7,3988.0,0.913]
[1733535875245,4.9142,3988.7,3988.0,1.26405]
[1733535875458,4.9142,3989.2,3988.0,0.913]
[1733535875617,0.03134197,3989.1,3988.1,0.35103]
[1733535875933,0.8624,3988.9,3988.0,0.913]
[1733535876255,0.8624,3988.9,3988.0,1.26405]
[1733535876658,0.893744,3988.9,3988.0,1.26405]
[1733535876856,0.8624,3988.9,3988.0,1.26405]
[1733535878355,0.96159057,3988.9,3988.0,1.26405]
[1733535879547,0.65382071,3989.0,3988.0,1.26405]
[1733535879855,0.85488596,3988.9,3988.0,1.26405]
[1733535880057,0.65382071,3989.0,3988.0,0.913]
[1733535880381,4.9142,3989.2,3988.0,0.913]
[1733535880577,2.13776985,3989.1,3988.3,0.35102]
[1733535880874,3.4142,3989.2,3988.3,0.35102]
[1733535881179,1.0857916,3989.3,3988.3,0.35102]
[1733535881180,1.9142,3989.1,3988.3,0.35102]
[1733535881395,0.8624,3989.0,3988.3,0.35102]
[1733535882175,1.2766,3989.1,3988.3,0.35102]
[1733535882338,0.85527447,3989.0,3988.3,0.35102]
[1733535882538,1.2766,3989.1,3988.3,0.35102]
[1733535882791,0.55,3989.2,3988.3,0.35102]
[1733535882938,0.85510752,3989.1,3988.3,0.35102]
[1733535883268,0.55,3989.2,3988.3,0.35102]
[1733535883467,0.85499197,3989.1,3988.3,0.35102]
[1733535883673,0.55,3989.2,3988.4,0.35101]
[1733535883885,0.79867833,3989.3,3988.4,0.35101]
[1733535884178,1.28241202,3989.2,3988.4,0.35101]
[1733535884347,1.0857916,3989.4,3988.4,0.35101]
[1733535884555,1.28230042,3989.3,3988.4,0.35101]
[1733535884873,1.28230042,3989.2,3988.1,0.19987916]
[1733535885041,0.8624,3989.2,3988.0,1.26405]
[1733535885440,0.8624,3989.2,3988.0,0.913]
[1733535885774,0.8624,3989.2,3988.2,0.35103]
[1733535888386,0.8624,3989.2,3988.0,1.26405]
[1733535888875,2.61714,3989.2,3988.0,1.26405]
[1733535889195,0.41347316,3989.1,3988.0,1.26405]
[1733535890069,9.35347316,3989.1,3988.0,1.26405]
[1733535890343,9.35347316,3989.1,3988.2,1.0857916]
[1733535893094,8.94,3989.0,3988.2,1.0857916]
[1733535894666,0.03134176,3988.9,3988.1,3.0]
[1733535894976,0.9222,3988.8,3988.0,0.913]
[1733535895495,1.75491,3988.8,3988.0,0.913]
[1733535895704,1.19706532,3988.9,3988.0,0.913]
[1733535895992,10.695,3988.6,3988.0,0.913]
[1733535896680,1.78639499,3988.5,3988.0,0.913]
[1733535897764,0.03134499,3988.5,3988.0,0.913]
[1733535898087,8.94,3988.6,3988.0,0.913]
[1733535898088,1.75513,3988.3,3988.0,0.913]
[1733535898655,10.69513,3988.3,3987.3,0.9223]
[1733535898849,11.76777762,3988.3,3987.4,1.0857916]
[1733535899292,1.7554,3987.7,3987.3,0.9223]
[1733535899522,1.75555,3987.4,3986.1,0.9223]
[1733535899789,8.94,3987.3,3986.4,0.9223]
[1733535902267,10.69557,3987.3,3986.4,0.9223]
[1733535903474,8.94,3987.3,3986.4,0.9223]
[1733535903696,8.94,3987.3,3986.5,0.23593016]
[1733535903903,8.94,3987.3,3986.6,1.0857916]
[1733535909774,8.94,3987.3,3986.2,0.35121]
[1733535909775,8.94,3987.3,3986.0,1.62345294]
[1733535909974,10.69558,3987.3,3986.2,1.0857916]
[1733535910207,10.69558,3987.3,3986.2,1.4370016]
[1733535910441,10.69558,3987.3,3986.3,1.0857916]
[1733535910741,10.21035716,3987.3,3986.3,1.0857916]
[1733535910919,8.94,3987.3,3986.3,1.4369816]
[1733535911231,8.94,3987.3,3986.4,0.8677]
[1733535912232,8.94,3987.3,3986.4,1.9534916]
[1733535912899,8.94,3987.3,3986.4,0.8677]
[1733535913102,1.75548,3987.6,3986.0,0.625]
[1733535913103,0.8696,3986.5,3986.0,0.625]
[1733535913305,0.03136074,3986.4,3986.0,0.625]
[1733535915915,0.8696,3986.5,3986.0,0.625]
[1733535916119,9.64734623,3986.9,3986.1,3.35121]
[1733535916349,0.8696,3986.8,3986.1,3.0]
[1733535916534,0.8696,3986.6,3986.0,0.625]
[1733535916735,1.78729181,3986.5,3986.0,0.625]
[1733535916950,0.8696,3986.4,3986.0,0.625]
[1733535917161,0.03136192,3986.3,3986.0,0.625]
[1733535917661,1.78739192,3986.3,3986.0,0.625]
[1733535918231,1.75606,3986.2,3986.0,0.625]
[1733535918452,0.03136392,3986.1,3986.0,0.625]
[1733535918763,1.7561,3986.1,3986.0,0.625]
[1733535918918,2.01867,3986.1,3986.0,0.625]
[1733535919115,2.88827,3986.1,3986.0,0.625]
[1733535919545,2.9196353,3986.1,3986.0,0.625]
[1733535920058,12.4096353,3986.1,3986.0,0.625]
[1733535920253,12.37827,3986.1,3986.0,0.625]
[1733535921247,9.8096,3986.1,3986.0,0.625]
[1733535921567,8.94,3986.1,3986.0,0.625]
[1733535922124,8.94,3986.1,3986.0,1.84392]
[1733535923159,0.70734623,3986.9,3986.0,1.84392]
[1733535923746,0.70734623,3986.9,3986.0,1.4927]
[1733535923747,0.0313577,3986.8,3986.0,1.4927]
[1733535923929,0.0313577,3986.8,3986.0,1.677095]
[1733535925366,0.70734623,3986.9,3986.0,1.677095]
[1733535925719,0.70734623,3986.9,3986.1,0.35122]
[1733535926150,0.03135769,3986.8,3986.0,1.677095]
[1733535926828,0.70734623,3986.9,3986.1,0.35121]
[1733535927053,0.70734623,3986.9,3986.2,0.2028305]
[1733535928046,0.03135768,3986.8,3986.2,0.2028305]
[1733535928243,0.70734623,3986.9,3986.2,0.2028305]
[1733535929221,0.03135768,3986.8,3986.2,0.2028305]
[1733535929825,0.70734623,3986.9,3986.2,0.2028305]
[1733535930032,0.70734623,3986.9,3986.3,0.9038]
[1733535930367,0.70734623,3986.9,3986.3,1.25499]
[1733535930573,0.70734623,3986.9,3986.4,0.14578205]
[1733535930865,0.70734623,3986.9,3986.4,0.49697205]
[1733535931182,0.70734623,3986.9,3986.4,0.14578205]
[1733535931536,0.03135618,3986.8,3986.4,0.14578205]
[1733535931730,0.03135618,3986.8,3986.3,0.9038]
[1733535935678,0.70734623,3986.9,3986.5,0.35118]
[1733535935881,0.70734623,3986.9,3986.6,0.9038]
[1733535936094,0.70734623,3986.9,3986.8,1.25495]
[1733535937342,9.8197,3988.4,3987.2,0.35111]
[1733535937343,8.94,3988.3,3987.2,0.35111]
[1733535937644,0.8797,3988.1,3987.0,0.9038]
[1733535937850,1.78660829,3988.0,3987.0,0.9038]
[1733535938683,0.55,3987.9,3987.0,0.9038]
[1733535939886,0.55,3988.0,3987.0,0.9038]
[1733535940382,0.55,3988.0,3987.0,1.25494]
[1733535940585,0.55,3988.0,3987.0,1.39335483]
[1733535941065,8.94,3987.9,3987.0,1.39335483]
[1733535941273,8.94,3987.9,3987.0,1.25494]
[1733535944218,8.94,3987.9,3987.1,0.35113]
[1733535944653,8.94,3987.9,3987.0,0.9038]
[1733535944963,8.94,3987.9,3987.0,1.25493]
[1733535945674,0.03135172,3987.8,3987.0,1.25493]
[1733535946548,8.94,3987.9,3987.0,1.25493]
[1733535946785,10.152488,3987.9,3987.0,1.25493]
[1733535947165,8.94,3987.8,3987.0,1.25493]
[1733535948792,8.94,3987.8,3986.9,0.9523]
[1733535949381,0.03134854,3987.7,3986.9,0.9523]
[1733535949777,0.03134854,3987.7,3987.3,0.3511]
[1733535949988,0.03134854,3987.7,3987.4,0.8956]
[1733535950317,8.97134854,3987.7,3987.4,0.8956]
[1733535950464,8.94,3987.7,3987.4,0.8956]
[1733535950664,0.03134857,3987.6,3987.4,0.8956]
[1733535950893,0.03134857,3988.2,3987.4,0.8956]
[1733535951097,1.16012386,3988.1,3987.4,0.8956]
[1733535951262,0.03134856,3988.0,3987.4,0.8956]
[1733535951461,1.16012386,3988.1,3987.4,0.8956]
[1733535951727,8.94,3988.0,3987.6,0.35108]
[1733535951907,8.94,3988.0,3987.4,1.2467]
[1733535954995,8.94,3988.0,3987.5,0.35109]
[1733535956320,0.55,3988.4,3987.5,0.35109]
[1733535957417,0.55,3988.4,3987.4,0.8956]
[1733535957574,1.1245,3988.3,3987.4,0.8956]
[1733535957779,1.1245,3988.3,3987.4,1.2467]
[1733535960813,0.55,3988.4,3987.4,0.8956]
[1733535961018,0.55,3988.4,3987.9,0.9045]
[1733535962200,0.55,3988.2,3987.9,0.9045]
[1733535963886,9.49,3988.1,3988.0,0.35105]
[1733535964124,0.55,3988.0,3987.9,0.9045]
[1733535968186,9.49,3988.0,3987.9,0.9045]
[1733535970495,8.94,3989.1,3988.0,3.9009]
[1733535970694,8.94,3989.3,3988.9,1.08536097]
[1733535970995,8.94,3989.6,3989.4,0.35092]
[1733535971204,8.94,3989.6,3989.2,1.43630097]
[1733535971391,8.94,3989.6,3989.3,0.35093]
[1733535972389,0.55,3989.5,3989.3,0.35093]
[1733535972597,8.94,3989.6,3989.5,0.35092]
[1733535973037,8.94,3989.6,3989.3,0.9009]
[1733535973541,8.94,3989.6,3989.3,1.25183]
[1733535974204,0.55,3990.3,3989.3,0.9009]
[1733535974407,0.55,3990.3,3989.0,3.0]
[1733535974408,0.55,3989.9,3989.1,3.0]
[1733535974920,0.55,3989.9,3989.0,0.9009]
[1733535975127,0.58133491,3989.9,3989.0,0.9009]
[1733535975296,0.55,3989.5,3988.3,0.9009]
[1733535975497,1.75478,3989.1,3988.3,0.9009]
[1733535975806,1.4964,3988.7,3987.9,0.9009]
[1733535976134,1.52774461,3988.7,3987.9,0.9009]
[1733535976289,3.25135,3988.7,3987.9,0.9009]
[1733535976491,2.30511,3988.4,3987.5,0.9009]
[1733535977230,0.55,3988.2,3987.5,0.9009]
[1733535977835,0.55,3988.5,3987.5,0.9009]
[1733535978055,1.769139,3988.5,3987.5,0.9009]
[1733535978405,0.55,3988.3,3987.5,0.9009]
[1733535978606,0.55,3988.1,3987.5,0.9009]
[1733535979421,0.55,3988.3,3987.5,0.9009]
[1733535980656,0.0313463,3988.2,3987.5,0.9009]
[1733535980945,0.55,3988.1,3987.5,0.9009]
[1733535985438,1.75544,3987.6,3987.1,0.9009]
[1733535985650,2.30549,3987.5,3986.7,0.9009]
[1733535985844,0.03135325,3987.4,3986.7,0.9009]
[1733535986650,0.55,3987.3,3986.7,0.9009]
[1733535986954,0.03135324,3987.2,3986.7,0.9009]
[1733535987661,0.55,3987.3,3986.7,0.9009]
[1733535987817,0.55,3987.1,3986.7,0.9009]
[1733535988314,0.55,3987.5,3986.7,0.9009]
[1733535988635,0.55,3987.7,3986.7,0.9009]
[1733535989038,0.55,3987.7,3986.8,0.9009]
[1733535989449,0.58135038,3987.7,3986.8,0.9009]
[1733535990546,0.55,3987.7,3986.8,0.9009]
[1733535990943,0.55,3987.7,3986.9,0.8614]
[1733535991628,9.70605928,3988.5,3987.6,0.35108]
[1733535991937,0.76605928,3988.5,3987.7,0.8614]
[1733535993363,0.55,3988.4,3987.7,0.8614]